Cogmind - Beta 13 @@@ ROGUE MODE // 2024.06.22 @ 11:41:39 Player: Kai Result: Self-destructed Performance ------------- Evolutions (1) 500 Regions Visited (3) 600 Robots Destroyed (61) 305 Value Destroyed (1533) 1533 Prototype IDs (10) 200 Alien Tech Used (0) 0 Bonus (11) 11 TOTAL SCORE: 3149 Bonus ------- High Alert Combat Kills 11 Cogmind --------- Core Integrity 60/400 Matter 289/300 Energy 85/100 System Corruption 5% Temperature Cool (39) Movement Core (700) Ox13 Location -9/Mines Parts ------- > --- POWER (1) -------- (None) > --- PROPULSION (3) --- (None) > --- UTILITY (3) ------ High-capacity Storage Unit Signal Interpreter > --- WEAPON (2) ------- (None) > --- INVENTORY (20) --- Light Ion Engine Nuclear Core Nuclear Core Flight Unit VTOL Module VTOL Module VTOL Module Improved Heat Sink Medium Matter Pod (100) Weight Redist. System Sensor Array Terrain Scanner Targeting Computer Shield Generator Shock Rifle Flail Peak State ------------ > --- POWER ------------ Nuclear Core > --- PROPULSION ------- Light Treads Light Treads Light Treads > --- UTILITY ---------- High-capacity Storage Unit Signal Interpreter Hacking Suite > --- WEAPON ----------- Shock Rifle Light Cannon > --- INVENTORY -------- Nuclear Core Nuclear Core Nuclear Core Light Treads Flight Unit Flight Unit VTOL Module VTOL Module Improved Heat Sink Medium Matter Pod Weight Redist. System Sensor Array Sensor Array Terrain Scanner Light Armor Plating Particle Gun Shotgun Light Cannon Light Cannon Flail [Rating: 18] Favorites ----------- Power Nuclear Core Engine Light Ion Engine Power Core Nuclear Core Propulsion Light Treads Treads Light Treads Leg Aluminum Leg Wheel Compact Wheel Hover Unit Hover Unit Flight Unit VTOL Module Utility High-capacity Storage Unit Device Sensor Array Storage High-capacity Storage Unit Processor Signal Interpreter Hackware Hacking Suite Protection Hardened Light Armor Plating Weapon Light Cannon Energy Gun Particle Gun Ballistic Gun Shotgun Ballistic Cannon Light Cannon Launcher Rocket Launcher Build | -11 -10 -9 -9 ------- Run | Yrd Mat Mat Min Slots Evolved 2 | . . 2 . Power . | . . . . Propulsion 1 | . . 1 . Utility 1 | . . 1 . Weapon . | . . . . Parts Attached 48 | 6 15 19 8 Power 5 | 1 2 2 . Engine 3 | 1 2 . . Core 2 | . . 2 . Reactor . | . . . . Propulsion 16 | 2 1 10 3 Treads 12 | 2 1 8 1 Leg 1 | . . . 1 Wheel 1 | . . . 1 Hover 1 | . . 1 . Flight 1 | . . 1 . Utility 7 | 1 3 2 1 Device 2 | . 1 1 . Storage 2 | 1 1 . . Processor 1 | . 1 . . Hackware 1 | . . 1 . Protection 1 | . . . 1 Artifact . | . . . . Weapon 20 | 2 9 5 4 Energy Gun 6 | 1 2 2 1 Energy Cannon . | . . . . Ballistic Gun 6 | 1 5 . . Ballistic Cannon 4 | . 2 1 1 Launcher 4 | . . 2 2 Special Weapon . | . . . . Impact Weapon . | . . . . Slashing Weapon . | . . . . Piercing Weapon . | . . . . Special Melee Weapon . | . . . . Unidentified Prototypes . | . . . . Parts Lost 16 | . 2 . 14 Power 2 | . 1 . 1 Propulsion 6 | . . . 6 Utility 3 | . 1 . 2 Weapon 5 | . . . 5 Highest Loss Streak 8 | . 1 . 8 To Critical Strikes . | . . . . Average Slot Usage (%) 95 | . 95 99 81 Engine 6 | . 13 . . Core 6 | . . 10 10 Treads 27 | . 27 31 14 Device 1 | . 1 1 . Storage 12 | . 14 11 11 Processor 10 | . 10 11 11 Hackware 4 | . . 9 1 Protection 1 | . . . 9 Energy Gun 5 | . 10 3 . Ballistic Gun 6 | . 13 . . Ballistic Cannon 8 | . 3 13 10 Launcher 3 | . . 5 11 Naked Turns . | . . . . Heaviest Build 59 | 11 51 54 59 Greatest Support 60 | 40 40 60 60 Greatest Overweight (x) 3 | 3 2 1 3 Average Overweight (x) . | . . . 1 Largest Inventory Capacity 20 | 8 20 20 20 Average Capacity 18 | 7 18 20 20 Most Carried 20 | 4 20 20 20 Average Carried 15 | 3 12 19 16 Final Capacity 20 | 8 20 20 20 Final Carried 20 | 4 20 20 16 Class Distribution -------------------- 63% | Mutant 36% | Scavenger-Mutant Dominant Class ---------------- Mutant | -10/Materials Scavenger-Mutant | -9/Materials Mutant | -9/Mines Resources | -11 -10 -9 -9 ----------- Run | Yrd Mat Mat Min Matter Collected 1675 | 242 480 661 292 Remotely . | . . . . Salvage Created 1894 | . 413 1436 45 Parts 125 | . 27 97 1 Haulers Intercepted 2 | . 1 1 . Recyclers Shooed 4 | . 1 3 . Parts Field Recycled . | . . . . Retrieved Matter . | . . . . Parts Self-Destructed . | . . . . Prevented . | . . . . Kills | -11 -10 -9 -9 ------- Run | Yrd Mat Mat Min Combat Hostiles Destroyed 44 | . 9 26 9 Guns 14 | . 9 5 . Cannons 13 | . . 8 5 AOE 16 | . . 12 4 Classes Destroyed 15 | . 6 7 2 Worker 4 | . 1 3 . Builder 2 | . . 1 1 Tunneler 1 | . . 1 . Hauler 2 | . 1 1 . Recycler 2 | . . 2 . Mechanic 1 | . . 1 . Operator 4 | . 1 3 . Watcher 8 | . 3 5 . Swarmer 6 | . 3 3 . Grunt 20 | . 6 14 . Brawler 2 | . . 2 . Duelist 1 | . . 1 . Sentry 6 | . . 6 . Demolisher 2 | . . . 2 Assembled 7 | . . . 7 Best Kill Streak 6 | . 5 6 5 Combat Bots Only 4 | . 4 3 4 Max Kills in Single Turn 3 | . 2 3 2 Gunslinging . | . . . . Exploded 2 | . . 2 2 Melee . | . . . . Uniques/NPCs Destroyed . | . . . . Combat | -11 -10 -9 -9 -------- Run | Yrd Mat Mat Min Hostile Shots Fired 152 | . 41 64 47 Missed 39 | . 12 20 7 Damage Taken 2447 | . 320 597 1530 Core 371 | . 31 33 307 Absorbed by Shields . | . . . . Regen/Repaired (Parts) 152 | . . 152 . Core Remaining (%) 93 | 100 87 . . Volleys Fired 157 | . 42 89 26 Largest 2 | . 2 2 2 Hottest 88 | . 88 85 68 Shots Fired 286 | . 85 165 36 Gun 135 | . 85 47 3 Cannon 114 | . . 96 18 Launcher 37 | . . 22 15 Special . | . . . . Kinetic 172 | . 58 96 18 Thermal 20 | . 17 . 3 Explosive 15 | . . . 15 Electromagnetic 79 | . 10 69 . Robot Hit Streak 19 | . 10 19 9 Robot Miss Streak 9 | . 5 9 5 Penetration Max . | . . . . Secondary Targets 2 | . 2 . . Max Gunslinging Chain 1 | . 1 . . Shots Hit Robots 164 | . 50 92 22 Core Hits 102 | . 28 53 21 Critical Kills . | . . . . Critical Parts Destroyed 1 | . 1 . . Critical Strikes 3 | . 1 2 . Destroy 1 | . 1 . . Blast 1 | . . 1 . Corrupt 1 | . . 1 . Melee Attacks . | . . . . Impact . | . . . . Slashing . | . . . . Piercing . | . . . . Sneak Attacks . | . . . . Combat Hostiles . | . . . . Follow-up Attacks . | . . . . Damage Inflicted 3985 | . 735 2559 691 Guns 1276 | . 730 498 48 Cannons 1121 | . . 927 194 Explosions 1578 | . . 1129 449 Melee . | . . . . Ramming 10 | . 5 5 . Kinetic 1628 | . 507 927 194 Thermal 509 | . 101 360 48 Explosive 449 | . . . 449 Electromagnetic 1389 | . 122 1267 . Impact . | . . . . Slashing . | . . . . Piercing . | . . . . Highest Corruption 5 | . 3 . 5 Average Corruption 3 | . 2 . 5 Corruption Purged . | . . . . Corruption Blocked . | . . . . Effects 49 | . 30 . 19 Message Errors 11 | . 5 . 6 Matter Fused 14 | . 7 . 7 Heat Flow Errors 4 | . 2 . 2 Energy Discharges 5 | . 3 . 2 Data Loss (minor) 10 | . 9 . 1 Data Loss (major) 1 | . 1 . . Misfires 3 | . 2 . 1 Alerts 1 | . 1 . . Overload Shots . | . . . . Overflow Damage 35 | . . 17 18 Projectiles 11 | . . 11 . Explosions 24 | . . 6 18 Melee . | . . . . Knockbacks 8 | . . 5 3 Impact . | . . . . Kinetic 8 | . . 5 3 Secondary . | . . . . Self-Inflicted Damage 162 | . . 43 119 Shots 6 | . . 1 5 Rammed 3 | . 1 2 . Targets Rammed 3 | . 1 2 . Kicked . | . . . . Crushed . | . . . . Highest Temperature 242 | . 242 170 234 Average Temperature 43 | . 37 46 41 Received Heat Transfer 363 | . 144 159 60 Siege Activations . | . . . . Robots Corrupted 1 | . . 1 . Combat Hostiles 1 | . . 1 . Parts Fried 5 | . 1 4 . Impact Corruptions . | . . . . Robots Melted . | . . . . Combat Hostiles . | . . . . Parts Melted 2 | . . 2 . Heat Transferred 920 | . 259 550 111 Parts Sabotaged . | . . . . Parts Stolen . | . . . . Parts Stripped . | . . . . Power Chain Reactions 9 | . . 9 . Alert | -11 -10 -9 -9 ------- Run | Yrd Mat Mat Min Peak Influence 422 | . 137 422 132 Initial 76 | . . . 76 Average 106 | . 37 212 60 Maximum Alert Level 2 | . . 2 . Low Security (%) 80 | 100 100 48 100 Level 1 19 | . . 48 . Level 2 . | . . 2 . Level 3 . | . . . . Level 4 . | . . . . Level 5 . | . . . . High Security . | . . . . Max Security . | . . . . Squads Dispatched 6 | . 1 5 . Investigation 1 | . . 1 . Extermination . | . . . . Reinforcement 5 | . 1 4 . Assault . | . . . . Garrison . | . . . . Intercept . | . . . . Searches Triggered . | . . . . Construction Impeded . | . . . . Haulers Reinforced . | . . . . Active Scanning Responses . | . . . . Cargo Convoy Interrupts . | . . . . Stealth | -11 -10 -9 -9 --------- Run | Yrd Mat Mat Min Distress Signals 6 | . 1 4 1 Communications Jammed . | . . . . Distress Signals . | . . . . Times Spotted 73 | . 17 37 19 Peak Tracking Total 12 | . 3 5 12 Tactical Retreats 3 | . . 2 1 Traps | -11 -10 -9 -9 ------- Run | Yrd Mat Mat Min Traps Triggered 7 | . 5 2 . Indirectly . | . . . . Trap Hack Attempts . | . . . . Triggered . | . . . . Disarmed . | . . . . Reprogrammed . | . . . . Reused . | . . . . Traps Extracted . | . . . . Installed . | . . . . Triggered . | . . . . Machines | -11 -10 -9 -9 ---------- Run | Yrd Mat Mat Min Machines Disabled 3 | . . 3 . Max in Single Turn 1 | . . 1 . Machines Repaired . | . . . . Machines Dismantled . | . . . . Machines Sabotaged . | . . . . Overloaded Fab Kills . | . . . . Hacking | -11 -10 -9 -9 --------- Run | Yrd Mat Mat Min Machines Accessed 9 | . 3 6 . Terminals 8 | . 3 5 . Fabricators . | . . . . Repair Stations 1 | . . 1 . Recycling Units . | . . . . Scanalyzers . | . . . . Garrison Access . | . . . . Total Hacks 28 | . 6 22 . Successful 15 | . 2 13 . Failed 13 | . 4 9 . Catastrophic 1 | . . 1 . Database Lockouts . | . . . . Manual 13 | . 2 11 . Terminals 22 | . 6 16 . Fabricators . | . . . . Repair Stations 6 | . . 6 . Recycling Units . | . . . . Scanalyzers . | . . . . Garrison Access . | . . . . Terminal Hacks 11 | . 2 9 . Record 1 | . . 1 . Prototype ID Bank 6 | . 1 5 . Unreport Threat 3 | . 1 2 . Zone Layout 1 | . . 1 . Fabricator Hacks . | . . . . Repair Station Hacks 4 | . . 4 . Scan Component 2 | . . 2 . Repair 2 | . . 2 . Recycling Unit Hacks . | . . . . Scanalyzer . | . . . . Garrison Access Hacks . | . . . . Unauthorized Hacks . | . . . . Terminals . | . . . . Fabricators . | . . . . Repair Stations . | . . . . Recycling Units . | . . . . Scanalyzers . | . . . . Garrison Access . | . . . . Data Cores Recovered . | . . . . Used . | . . . . Hacking Detections 7 | . 2 5 . Full Trace Events 1 | . . 1 . Feedback Events . | . . . . Feedback Blocked . | . . . . Robot Schematics Acquired . | . . . . Robots Built . | . . . . Authchips . | . . . . Time . | . . . . Total Robot Build Rating . | . . . . Part Schematics Acquired . | . . . . Parts Built . | . . . . Authchips . | . . . . Time . | . . . . Total Part Build Rating . | . . . . Parts Repaired 2 | . . 2 . Time 64 | . . 64 . Parts Recycled . | . . . . Recycled Matter . | . . . . Retrieved Matter . | . . . . Retrieved Components . | . . . . Parts Scanalyzed . | . . . . Part Schematics Acquired . | . . . . Parts Damaged . | . . . . Bothacking | -11 -10 -9 -9 ------------ Run | Yrd Mat Mat Min Used RIF Installer . | . . . . Robots Hacked . | . . . . Non-combat . | . . . . Combat . | . . . . Robot Hacks Applied . | . . . . Relay Couplers Released . | . . . . Fabnet Peak Effective % . | . . . . Robots Rewired . | . . . . Allies Hacked . | . . . . Hacks Repelled . | . . . . Allies | -11 -10 -9 -9 -------- Run | Yrd Mat Mat Min Total Allies . | . . . . Largest Group . | . . . . Highest-Rated Group . | . . . . Highest-Rated Ally . | . . . . Total Orders . | . . . . Ally Attacks . | . . . . Total Damage . | . . . . Kills . | . . . . Allies Corrupted . | . . . . Allies Melted . | . . . . Intel | -11 -10 -9 -9 ------- Run | Yrd Mat Mat Min Robot Analysis Total . | . . . . Derelict Logs Recovered . | . . . . Drone Launches . | . . . . Drone Recoveries . | . . . . Exploration | -11 -10 -9 -9 ------------- Run | Yrd Mat Mat Min Turns Passed 5612 | 336 2350 2195 731 Spaces Moved 2360 | 57 967 1101 235 Core 10 | 10 . . . Treads 2348 | 47 967 1101 233 Legs . | . . . . Wheels 2 | . . . 2 Hover . | . . . . Flight . | . . . . Fastest Speed 50 | 50 160 160 145 Average Speed 200 | 157 225 163 277 Slowest Speed 320 | 200 320 240 320 Overloaded Moves . | . . . . Propulsion Burnouts . | . . . . Robots Hopped . | . . . . Cave-ins Triggered . | . . . . Exploration Rate (%) 57 | 9 92 79 49 Regions Visited 3 Branch Regions 1 Pre-discovered Areas . | . . . . Known Exits Taken 2 | . 1 1 . Unknown Exits Taken 1 | 1 . . . Scrap Searched 1 | . . . 1 Spaces Dug . | . . . . Terrain Destroyed 115 | . . 36 79 Melee . | . . . . Projectile . | . . . . AOE 115 | . . 36 79 Terrain Rammed . | . . . . Walls Destroyed . | . . . . Machines Disabled . | . . . . Actions | -11 -10 -9 -9 --------- Run | Yrd Mat Mat Min Total 2967 | 301 1055 1333 278 Wait 315 | 234 1 74 6 Move 2357 | 56 966 1100 235 Hop . | . . . . Pick Up 54 | 5 24 22 3 Fast Attach 12 | 5 2 5 . Attach 18 | 1 6 4 7 Detach 2 | . 1 1 . Swap 18 | . 7 10 1 Drop 31 | . 5 26 . Fire 157 | . 42 89 26 Melee . | . . . . Ram . | . . . . Kick . | . . . . Crush 3 | . 1 2 . Escape Stasis . | . . . . Rewire . | . . . . Trap . | . . . . Miscellaneous . | . . . . Route ------- -11/Scrapyard -10/Materials (discovered 5 exits: *Mat x3 / *Min / *Sub) -9/Materials (discovered 3 exits: *Mat x2 / *Min) -9/Mines (discovered 1 exit: *Mat) History --------- Turn | Location | Event 13 | -11/Scrapyard | Discovered new exit (range 15) 337 | -11/Scrapyard | Entered Materials 338 | -10/Materials | Build established: Mutant 970 | -10/Materials | Discovered new exit (range 8) 1549 | -10/Materials | Discovered new exit (range 15) 1584 | -10/Materials | Identified exit to Materials 1910 | -10/Materials | Discovered exit to Materials (range 7) 1941 | -10/Materials | Discovered new exit (range 16) 2060 | -10/Materials | Identified exit to Mines 2649 | -10/Materials | Discovered new exit (range 9) 2668 | -10/Materials | Identified exit to Subcaves 2687 | -10/Materials | Entered another Materials area 2687 | -9/Materials | Evolved 2 slots: Propulsion x1, Utility x1 3172 | -9/Materials | Repaired Shock Rifle 3200 | -9/Materials | Repaired Lgt. Treads 3240 | -9/Materials | Build established: Scavenger-Mutant 3552 | -9/Materials | Discovered new exit (range 15) 4001 | -9/Materials | Discovered new exit (range 13) 4048 | -9/Materials | Identified exit to Mines 4436 | -9/Materials | Discovered new exit (range 14) 4458 | -9/Materials | Identified exit to Materials 4882 | -9/Materials | Entered Mines 4916 | -9/Mines | Discovered exit to Materials (range 8) 4962 | -9/Mines | Assembled infested the area 5041 | -9/Mines | Lost 6 parts (3n1u2w) 5303 | -9/Mines | Build established: Mutant 5595 | -9/Mines | Core integrity fell below 50% 5613 | -9/Mines | Core integrity fell below 20% 5613 | -9/Mines | Self-destructed Last Messages --------------- Acquired Aluminum Leg. Acquired 10 matter. System corrupted: Heat flow error (+181). YI-UF0 mumbles something. System corrupted: Component data lost. Acquired Com. Wheel. Lgt. Treads destroyed. Destroyed Lgt. Treads. Rocket Launcher destroyed. YI-UF0 knocked back. The unstable cave ceiling collapses. Com. Wheel destroyed. Aluminum Leg destroyed. Nuclear Core destroyed. YI-UF0 knocked back. Lgt. Cannon destroyed. The unstable cave ceiling collapses. Hrd. Light Armor Plating destroyed. The unstable cave ceiling collapses. Particle Gun destroyed. Map ----- +----------------------------------------------------+ | | | | | | | | | | | | | | | | | | | | | | | | | | | | | ?????????????????????????????????????????????????? | | ?????????????????????????????????????????????????? | | ?????????????????????????????????????????????????? | | ?????????????????????????????????????????????????? | | ???????????????????????###########???????????????? | | ???????????????????????# ????????????????? | | ???????????????????##### ?????????????????? | | ???????????????????# ##?????????????????? | | ??????????????????## ####??????????????? | | ?##??????????????## # ###????????????? | | ? #??????????#### ! ##???????????? | | ? ??????????# @ ##??????????? | | ? ??????????# ### ###????????? | | ?# #??????????# #?## %! #????????? | | ?# #??????????# #??### # #??????? | | ?# #?????###### #???# ## ## #????? | | ?# #?????# #?? # # #### ##?? # ??? | | ?# #?????# ######?# #g #??### ####????##?# ##?? | | ?# #######!#?##### ## ##????###????????????#??? | | ?# * !### ## #???????????????????????? | | ?###### ##### ????????????????????????? | | ??????# #???# #??##????????????????????????? | | #?????# #????# #?????????????????????????????? | | ###### ###### #####?????????????????????????? | | ??????????????????? | | #######?????????????????????????? | | #### ###### ##???????????????????????????????? | | ############# #????????????????????????????????? | | #????????????????????????????????? | | ###############????????????????????????????????? | | ###??????????????????????????????????????????????? | | ?????????????????????????????????????????????????? | | ?????????????????????????????????????????????????? | | ?????????????????????????????????????????????????? | | ?????????????????????????????????????????????????? | | ?????????????????????????????????????????????????? | +----------------------------------------------------+ Best States ------------- Heat Dissipation 28 Energy Generation 14 Energy Capacity 250 Matter Stores 300 Matter Capacity 300 Sight Range 16 Robot Scan Range 14 Terrain Scan Density 10 Armor Coverage 150 Evasion (%) 40 Recoil Reduction 3 Offensive Hacking 10 Item Schematics ----------------- None Robot Schematics ------------------ None Fabricated ------------ Nothing Alien Tech Used ----------------- None Achievements -------------- None Challenges ------------ None Game ------ Seed WeldingAngularMicrothruster Manual? 0 Play Time 00:38:52 Cumulative 15.7 hours Start 2024.06.22 @ 11:06:55 End 2024.06.22 @ 11:41:39 Sessions 1 Manual Loads 0 Difficulty Rogue Special Mode None Game No. 18 Rogue 18 Adventurer 0 Explorer 0 Win Type - Total 0 Types 0/0/0/0/0/0/0/0/0 Lore% 13 Gallery% 20 Achievement% 18 Wizard Run 0 Options --------- Layout 0 ASCII 0 Keyboard 0 Movement Mouse Keybinds 0 Fullscreen 2 Font 24/Smallcaps Map View 38x28 Zoom Use 99% Tactical HUD 0 Map Filters NONE Filters NONE Steam 1 RUN: 22005f68-7e5a-4e01-933c-b6f57a3cc12a